bitfinex/quotes_ETHUSD_20241105
["timestamp","ask_amount","ask_price","bid_price","bid_amount"]
[1730831468365,0.55,2455.4,2454.8,4.85441]
[1730831468570,0.55,2455.4,2454.9,3.0]
[1730831468571,0.8111,2455.3,2454.9,3.0]
[1730831468768,0.55,2455.2,2454.6,0.8228]
[1730831469000,0.55,2455.2,2455.1,4.07315]
[1730831469983,4.0721,2455.8,2455.3,4.07274]
[1730831469984,0.7828,2455.7,2455.3,4.07274]
[1730831470185,0.55,2455.6,2455.3,4.07274]
[1730831470924,0.7754,2455.5,2455.1,4.07301]
[1730831471088,0.55,2455.4,2455.1,4.07301]
[1730831471531,0.55,2455.4,2455.2,4.07296]
[1730831472088,0.55,2455.4,2455.1,4.07313]
[1730831473304,0.55,2455.4,2455.1,8.14626]
[1730831473624,0.55,2455.4,2455.1,4.07313]
[1730831476031,0.55,2455.4,2454.9,4.07338]
[1730831476223,4.07285,2455.3,2454.9,4.07338]
[1730831476421,0.7792,2455.2,2454.9,4.07338]
[1730831476635,0.55,2455.1,2454.7,4.07369]
[1730831476844,0.55,2455.1,2454.8,4.07364]
[1730831478341,1.3724,2454.9,2454.3,4.07436]
[1730831478545,0.55,2454.7,2454.4,4.40889456]
[1730831478748,0.55,2454.5,2454.2,4.07464]
[1730831479129,0.55,2454.5,2454.3,4.07439]
[1730831479336,0.55,2454.5,2454.3,4.07435]
[1730831479725,1.3638,2454.8,2454.4,4.07431]
[1730831480249,0.8138,2455.0,2454.7,4.07372]
[1730831480417,0.55,2454.9,2454.7,4.07372]
[1730831481313,0.55,2454.9,2454.6,4.07397]
[1730831482445,0.55,2454.9,2454.6,8.14786]
[1730831482682,0.8138,2455.0,2454.8,4.07359]
[1730831482858,5.42378279,2455.3,2454.7,0.7564]
[1730831482859,0.751,2455.3,2454.7,0.7564]
[1730831483059,0.751,2455.3,2455.0,4.0732]
[1730831484057,1.233358,2455.3,2454.9,4.07348]
[1730831484997,0.55,2455.2,2454.7,4.07371]
[1730831485151,0.752,2455.1,2454.7,4.07371]
[1730831485355,0.55,2455.0,2454.7,4.07371]
[1730831486176,0.55,2455.0,2454.8,4.07362]
[1730831486715,0.55,2455.0,2454.7,4.07371]
[1730831487323,0.55,2455.0,2454.7,8.14743]
[1730831487476,0.55,2455.0,2454.7,4.07371]
[1730831488816,0.55,2455.0,2454.7,8.14744]
[1730831489046,0.55,2455.0,2454.8,4.07364]
[1730831491776,0.55,2455.2,2455.0,4.07331]
[1730831492486,0.822,2455.3,2455.1,4.07315]
[1730831493224,0.822,2455.3,2455.2,4.07298]
[1730831493424,6.62327778,2455.8,2455.2,5.02409051]
[1730831493425,1.70134974,2455.8,2455.2,5.02409051]
[1730831493573,2.50654974,2456.0,2455.7,4.07206]
[1730831493776,2.12599815,2456.1,2455.7,4.07206]
[1730831493777,1.70134974,2456.1,2455.9,4.07182]
[1730831493978,1.70134974,2456.2,2456.1,4.07149]
[1730831494188,1.70134974,2456.4,2456.0,4.07166]
[1730831494391,1.70134974,2456.4,2456.0,4.07152]
[1730831494615,2.17065997,2456.4,2456.1,4.07144]
[1730831495286,2.17065997,2456.4,2456.0,4.07152]
[1730831495287,0.46931023,2456.4,2456.0,4.07152]
[1730831495488,2.17065997,2456.4,2456.0,4.07152]
[1730831495993,1.70134974,2456.3,2456.0,4.07152]
[1730831496189,1.70134974,2456.3,2455.8,4.07188]
[1730831496394,1.70134974,2456.3,2455.9,4.07179]
[1730831496818,0.55,2456.2,2455.8,4.07188]
[1730831496991,0.8238,2456.1,2455.7,3.0]
[1730831497202,0.8238,2456.1,2455.7,7.07215]
[1730831497203,0.55,2456.0,2455.7,7.07215]
[1730831498494,0.55,2456.0,2455.7,4.07215]
[1730831500121,0.55,2456.0,2455.6,4.07221]
[1730831501535,0.55,2456.0,2455.7,4.07213]
[1730831501689,0.55,2456.0,2455.8,4.0719]
[1730831502838,0.55,2456.0,2455.7,8.1442]
[1730831503189,0.55,2456.0,2455.8,4.07198]
[1730831503433,0.55,2456.0,2455.7,4.07207]
[1730831503829,0.55,2456.0,2455.7,8.14414]
[1730831504233,0.55,2455.8,2455.4,4.07256]
[1730831504533,0.7942,2455.9,2455.6,4.07232]
[1730831504694,0.55,2455.8,2455.6,4.07232]
[1730831505341,1.70134974,2456.0,2455.6,4.15364592]
[1730831505540,1.70134974,2456.2,2456.0,4.07166]
[1730831505694,1.70134974,2456.3,2456.0,4.07166]
[1730831506520,7.04941428,2456.3,2455.8,4.07186]
[1730831506721,4.07146,2456.2,2455.7,3.0]
[1730831506895,0.55,2456.1,2455.7,3.0]
[1730831507100,0.55,2456.1,2455.7,7.07215]
[1730831507400,4.62188,2455.9,2455.5,3.0]
[1730831507623,5.164738,2455.9,2455.5,3.0]
[1730831507828,4.07202,2455.8,2455.4,4.07254]
[1730831508029,4.07202,2455.8,2455.3,0.7687]
[1730831508030,0.55,2455.7,2455.3,4.07281]
[1730831508459,4.07202,2455.8,2455.4,4.07264]
[1730831508460,0.55,2455.8,2455.4,4.07264]
[1730831508666,4.622,2455.8,2455.4,4.07264]
[1730831508940,5.79647877,2455.8,2455.4,4.07264]
[1730831509553,5.79647877,2455.8,2455.3,4.07281]
[1730831509751,0.55,2455.6,2455.1,3.8165]
[1730831510039,4.0726,2455.5,2455.0,4.07321]
[1730831510259,8.689187,2455.5,2455.0,4.07321]
[1730831510537,0.7577,2455.4,2455.0,4.07321]
[1730831511641,0.7577,2455.4,2455.1,4.07314]
[1730831511816,0.7577,2455.4,2455.0,4.07321]
[1730831512010,0.7577,2455.4,2455.0,8.1464]
[1730831512397,0.7577,2455.4,2455.0,4.07319]
[1730831513345,0.7577,2455.4,2455.0,8.14641]
[1730831513839,0.7577,2455.4,2455.0,4.07319]
[1730831514051,0.7577,2455.4,2455.0,8.14642]
[1730831514844,0.7577,2455.4,2455.0,4.07319]
[1730831515141,0.7577,2455.4,2455.0,8.14642]
[1730831516204,0.7577,2455.4,2455.1,4.07315]
[1730831516509,0.7577,2455.4,2455.0,4.07319]
[1730831517344,0.7577,2455.4,2455.0,8.14642]
[1730831517540,0.7577,2455.4,2455.0,4.07319]
[1730831518130,4.6229,2455.3,2454.9,3.0]
[1730831519251,0.55,2455.1,2454.9,3.0]
[1730831521583,0.7834,2455.0,2454.6,4.07386]
[1730831521746,0.7834,2455.0,2454.8,4.07363]
[1730831522076,0.55,2455.1,2454.9,4.07346]
[1730831523076,0.55,2455.1,2454.7,4.07365]
[1730831523277,0.55,2455.1,2454.8,4.07363]
[1730831523780,1.70134974,2455.4,2455.2,4.0729]
[1730831523938,0.55,2455.4,2455.2,4.0729]
[1730831524142,2.12671669,2455.6,2454.9,0.7974]
[1730831524143,1.70134974,2455.6,2455.3,4.07282]
[1730831524444,2.53364974,2455.9,2455.3,3.88562388]
[1730831524633,1.70134974,2456.0,2455.8,4.0719]
[1730831524835,1.70134974,2456.1,2455.8,4.07199]
[1730831525179,2.49554974,2456.2,2455.9,4.0717]
[1730831525344,2.49554974,2456.2,2455.8,4.07199]
[1730831525681,10.21342664,2456.2,2455.6,4.07224]
[1730831525970,0.7959,2455.8,2455.5,3.0]
[1730831526875,0.7959,2455.8,2455.5,7.07248]
[1730831527169,0.7959,2455.8,2455.5,3.0]
[1730831527872,1.66547164,2455.8,2455.5,3.0]
[1730831528233,0.7959,2455.8,2455.5,7.07247]
[1730831528630,0.7959,2455.8,2455.5,3.0]
[1730831528873,0.55,2455.7,2455.5,3.0]
[1730831530786,0.55,2455.7,2455.5,7.07248]
[1730831531679,0.55,2455.7,2455.5,3.0]
[1730831531848,0.55,2455.7,2455.5,7.07248]
[1730831532049,1.70134974,2455.9,2455.6,4.07222]
[1730831532287,0.55,2455.9,2455.6,4.07222]
[1730831532488,2.25134974,2455.9,2455.6,4.07222]
[1730831532785,2.25134974,2455.9,2455.5,7.07245]
[1730831532991,2.25134974,2455.9,2455.6,4.07216]
[1730831533490,2.25134974,2455.9,2455.8,4.07199]
[1730831533491,0.55,2455.9,2455.8,4.07199]
[1730831534063,0.55,2456.0,2455.8,4.07199]
[1730831534300,2.25134974,2456.0,2455.7,4.07204]
[1730831534546,0.54875035,2456.0,2455.7,4.07204]
[1730831535387,2.25010009,2456.0,2455.7,4.07204]
[1730831535553,0.54875035,2456.0,2455.7,4.07204]
[1730831535758,2.25010009,2456.0,2455.7,4.07204]
[1730831537195,1.70134974,2456.2,2456.1,4.07149]
[1730831537399,1.70134974,2456.3,2456.2,4.07132]
[1730831537552,2.12801731,2456.4,2456.2,4.07132]
[1730831537553,1.70134974,2456.4,2456.3,4.07116]
[1730831538899,1.70134974,2456.5,2456.3,4.07116]
[1730831539191,3.01947171,2456.6,2456.3,4.07116]
[1730831539192,1.70134974,2456.4,2456.3,4.07116]
[1730831539358,1.70134974,2456.5,2456.4,4.07099]
[1730831539966,1.70134974,2456.5,2456.2,4.07118]
[1730831540184,1.70134974,2456.5,2456.2,8.14242]
[1730831540359,1.70134974,2456.5,2456.2,4.07118]
[1730831540570,1.70134974,2456.5,2456.2,8.14238]
[1730831540767,0.55,2456.4,2456.0,8.14312]
[1730831540996,2.25134974,2456.4,2456.0,4.07156]
[1730831541181,1.70134974,2456.3,2456.1,4.07149]
[1730831541705,2.25134974,2456.4,2456.1,4.07149]
[1730831542672,1.70134974,2456.3,2456.1,4.07149]
[1730831543971,2.25134974,2456.4,2456.1,4.07149]
[1730831545065,1.70134974,2456.3,2456.1,4.07149]
[1730831546663,2.25134974,2456.4,2456.1,4.07149]
[1730831547874,2.25134974,2456.4,2456.0,4.07156]
[1730831547875,2.25134974,2456.4,2456.0,3.0]
[1730831548210,2.25134974,2456.4,2456.1,4.07148]
[1730831549706,2.25134974,2456.4,2456.2,4.07132]
[1730831551111,2.25134974,2456.4,2456.0,3.0]
[1730831551286,2.25134974,2456.4,2456.1,4.07147]
[1730831551480,3.18573218,2456.4,2456.0,7.07165]
[1730831551879,3.18573218,2456.4,2456.2,4.07125]
[1730831551880,2.25134974,2456.4,2456.2,4.07125]
[1730831554593,2.25134974,2456.4,2456.1,4.07147]
[1730831555911,1.70134974,2456.4,2456.1,4.07147]
[1730831556816,0.7639,2456.3,2456.1,4.07147]
[1730831556975,0.7639,2456.3,2456.0,7.07163]
[1730831557186,0.7639,2456.3,2455.9,4.07179]
[1730831557187,7.40313074,2456.3,2455.9,4.07179]
[1730831557617,1.70134974,2456.2,2455.9,4.07179]
[1730831557828,7.40313074,2456.3,2455.9,4.07179]
[1730831558201,0.7519,2456.1,2455.5,0.7539]
[1730831558431,0.7519,2456.1,2455.9,4.07172]
[1730831559683,0.7519,2456.1,2456.0,4.07166]
[1730831560322,0.7519,2456.1,2455.9,4.07172]
[1730831560715,0.7519,2456.1,2455.9,8.1434]
[1730831561306,0.7519,2456.1,2455.9,4.07168]
[1730831562297,0.7519,2456.1,2455.7,4.07203]
[1730831562505,2.45324974,2456.1,2455.7,4.07203]
[1730831562837,0.55,2456.0,2455.7,4.07203]
[1730831563046,7.65057922,2456.0,2455.5,4.07236]
[1730831563247,7.65057922,2456.0,2455.4,4.07264]
[1730831563248,0.8231,2455.8,2455.4,4.07264]
[1730831563535,2.52444974,2455.8,2455.4,4.0725]
[1730831564047,0.7517,2455.5,2455.0,4.07323]
[1730831564248,6.52555974,2455.5,2455.0,4.07322]
[1730831564401,2.25134974,2455.4,2455.0,4.07322]
[1730831565050,2.25134974,2455.4,2454.8,4.07353]
[1730831565051,0.7993,2455.2,2454.8,4.07353]
[1730831565418,0.55,2455.1,2454.7,4.07368]
[1730831567411,0.7871,2454.9,2454.4,4.07416]
[1730831567942,4.8606,2454.9,2454.4,4.07416]
[1730831568102,0.55,2454.8,2454.5,0.33672645]
[1730831570033,0.55,2454.8,2454.5,4.41083645]
[1730831570236,0.55,2454.8,2454.5,0.33672645]
[1730831572920,5.572039,2454.8,2454.5,0.33672645]
[1730831573155,0.7881,2454.7,2454.5,0.33672645]
[1730831573661,4.86195,2454.7,2454.5,0.33672645]
[1730831574359,0.55,2454.6,2454.5,0.33672645]
[1730831575445,4.62398,2454.6,2454.5,0.33672645]
[1730831575654,6.4251919,2454.6,2454.5,0.33672645]
[1730831575891,5.38178,2454.6,2454.5,0.33672645]
[1730831578227,5.39178,2454.6,2454.5,0.33672645]
[1730831578653,5.0,2454.4,2453.7,4.07545]
[1730831578963,1.3626,2454.1,2453.7,4.07545]
[1730831580156,1.3626,2454.1,2453.7,8.15084]
[1730831580471,1.3626,2454.1,2453.7,4.07539]
[1730831580667,1.3626,2454.1,2453.8,4.0752]
[1730831580865,1.3626,2454.1,2453.8,4.07521]
[1730831581094,0.8126,2454.1,2453.9,4.07501]
[1730831581271,0.7912,2454.3,2454.0,4.07487]
[1730831581857,0.7912,2454.3,2454.0,4.07486]
[1730831582199,0.7912,2454.3,2454.0,8.14974]
[1730831582702,0.907408,2454.5,2454.1,4.07481]
[1730831582858,0.55,2454.4,2454.1,4.07481]
[1730831583058,0.7519,2454.5,2454.2,4.07456]
[1730831583258,1.3019,2454.7,2454.3,4.07435]
[1730831583982,1.3019,2454.7,2454.4,4.07429]
[1730831584499,1.3019,2454.7,2454.5,4.07414]
[1730831584669,0.7519,2454.7,2454.0,4.07489]
[1730831584870,4.07401,2454.6,2454.1,4.07468]
[1730831585473,0.7519,2454.7,2454.3,4.07446]
[1730831585976,0.55,2454.6,2454.3,8.14882]
[1730831586176,0.55,2454.6,2454.5,4.07414]
[1730831586674,0.55,2454.6,2454.4,4.0742]
[1730831587617,0.55,2454.6,2454.3,0.8103]
[1730831587817,0.55,2454.6,2454.3,4.88477]
[1730831588402,0.55,2454.6,2454.2,4.07456]
[1730831588712,0.55,2454.6,2454.4,4.0743]
[1730831589036,0.55,2454.6,2454.4,8.14851]
[1730831589321,0.55,2454.6,2454.4,4.07421]
[1730831589621,4.07345,2455.0,2454.1,0.8103]
[1730831589622,0.8214,2455.0,2454.7,4.07374]
[1730831589823,0.8214,2455.0,2454.8,4.07355]
[1730831589974,0.769,2455.2,2454.8,4.07355]
[1730831590172,1.67629,2455.2,2454.8,4.07355]
[1730831590371,4.07316,2455.1,2454.6,8.14774]
[1730831590586,1.67629,2455.2,2454.7,4.07372]
[1730831590792,5.74936,2455.2,2454.7,4.07372]
[1730831591511,4.07319,2455.1,2454.6,8.14776]
[1730831591688,5.74936,2455.2,2454.7,4.0737]
[1730831592429,1.67629,2455.2,2454.6,4.07387]
[1730831592617,0.769,2455.2,2454.8,8.14711]
[1730831592817,4.07282,2455.3,2454.8,8.14711]
[1730831593033,0.55,2455.3,2455.0,4.07322]
[1730831593224,0.55,2455.3,2454.9,4.07339]
[1730831593403,4.07309,2455.2,2454.7,3.0]
[1730831593608,4.07309,2455.2,2454.8,0.33642056]
[1730831593809,4.07309,2455.2,2454.7,7.07381]
[1730831594038,5.161047,2455.3,2454.8,0.33643835]
[1730831594206,5.161047,2455.3,2454.8,4.07355]
[1730831594415,5.161047,2455.3,2454.9,0.33641879]
[1730831594733,5.161047,2455.3,2454.8,4.07355]
[1730831595030,5.161047,2455.3,2454.9,0.33636975]
[1730831595228,4.07307,2455.2,2454.7,7.07372]
[1730831595436,4.07307,2455.2,2454.8,0.33633354]
[1730831595637,4.07307,2455.2,2454.7,11.14741]
[1730831595931,4.07307,2455.2,2454.8,0.3363322]
[1730831596132,4.07312,2455.2,2454.7,7.0737]
[1730831596341,4.07312,2455.2,2454.8,0.33633801]
[1730831596632,4.62285,2455.3,2454.8,4.07365]
[1730831596937,4.62285,2455.3,2454.9,4.07348]
[1730831597238,4.62285,2455.3,2454.8,4.07363]
[1730831598433,1.70134974,2456.1,2455.6,4.07231]
[1730831598640,0.95743424,2456.2,2455.9,4.07181]
[1730831598853,0.7955,2456.4,2455.8,4.0719]
[1730831598854,4.86659,2456.4,2455.8,4.0719]
[1730831599922,0.55,2456.3,2455.8,4.0719]
[1730831600104,0.55,2456.3,2455.8,4.07189]
[1730831600308,0.55,2456.3,2455.9,4.07169]
[1730831600734,0.55,2456.3,2455.7,3.0]
[1730831600735,5.162913,2456.3,2455.7,3.0]
[1730831600950,5.162913,2456.3,2455.5,3.0]
[1730831600951,0.55,2456.0,2455.5,3.0]
[1730831601258,0.55,2456.0,2455.5,7.07238]
[1730831601754,0.55,2456.0,2455.6,4.07232]
[1730831603047,0.8038,2456.2,2455.3,4.07279]
[1730831603048,4.07208,2455.8,2455.3,4.07279]
[1730831603348,1.038118,2455.7,2455.3,4.07279]
[1730831603650,0.55,2455.8,2455.4,4.07264]
[1730831606053,4.62199,2455.8,2455.2,4.07286]
[1730831606546,4.62199,2455.8,2455.3,4.07282]
[1730831607646,4.62199,2455.8,2455.4,4.07264]
[1730831607850,4.07218,2455.7,2455.2,4.07286]
[1730831608011,0.7556,2455.5,2455.2,8.14576]
[1730831608207,0.7556,2455.5,2455.2,4.07286]
[1730831608407,0.7556,2455.5,2455.3,4.07272]
[1730831608823,0.7556,2455.8,2455.2,3.88562388]
[1730831609013,0.7556,2455.8,2455.5,4.07237]
[1730831609358,0.7556,2455.8,2455.2,7.95848388]
[1730831609513,0.55,2455.7,2455.3,4.07282]
[1730831611221,0.55,2455.7,2455.4,4.07261]
[1730831611450,0.55,2455.7,2455.3,4.07282]
[1730831611657,0.55,2455.7,2455.3,4.07269]
[1730831612551,0.55,2455.7,2455.3,8.14541]
[1730831612751,1.494953,2455.7,2455.3,4.07269]
[1730831613309,1.494953,2455.7,2455.5,4.07248]
[1730831613534,0.55,2455.7,2455.5,4.07248]
[1730831614472,0.8278,2456.0,2455.6,4.07232]
[1730831614783,0.8278,2456.0,2455.7,4.07205]
[1730831615579,0.8278,2456.0,2455.8,4.0719]
[1730831615745,6.58482974,2456.3,2455.7,8.14407]
[1730831615939,6.58482974,2456.3,2455.6,4.07222]
[1730831615940,0.8123,2456.2,2455.6,4.07222]
[1730831616172,4.07149,2456.1,2455.6,4.07222]
[1730831616997,0.55,2456.0,2455.6,4.07222]
[1730831617857,0.55,2456.0,2455.5,4.07236]
[1730831618180,4.62167,2456.0,2455.5,8.14473]
[1730831618704,0.55,2456.1,2455.9,8.14358]
[1730831618989,2.25134974,2456.3,2456.0,4.07166]
[1730831619284,2.51364974,2456.4,2456.1,4.07145]
[1730831619462,0.8123,2456.4,2456.1,4.07145]
[1730831619687,2.51364974,2456.4,2456.0,8.14312]
[1730831620253,1.70134974,2456.5,2456.2,4.07122]
[1730831620440,2.56420414,2456.6,2456.2,4.07122]
[1730831620641,4.34787677,2456.6,2456.2,4.07122]
[1730831620841,2.56420414,2456.6,2456.0,4.07166]
[1730831621072,0.0605544,2456.6,2456.4,4.07088]
[1730831621286,0.0605544,2456.6,2456.5,4.07083]
[1730831622147,0.0605544,2456.6,2456.5,4.84283]
[1730831623377,0.0605544,2456.6,2456.0,7.95723388]
[1730831623378,0.0605544,2456.6,2456.3,4.83898]
[1730831623578,0.0605544,2456.6,2456.4,4.07084]
[1730831624260,0.0605544,2456.6,2456.5,4.07083]
[1730831624735,0.0605544,2456.6,2456.4,4.07084]
[1730831625195,0.0605544,2456.6,2456.3,0.7679]
[1730831625360,0.0605544,2456.6,2456.4,4.07098]
[1730831625562,0.0605544,2456.6,2456.3,0.7679]
[1730831625962,0.0605544,2456.6,2456.3,4.83903]
[1730831627608,0.0605544,2456.6,2456.3,0.7679]
[1730831627766,0.0605544,2456.6,2456.3,4.83897]
[1730831627964,0.0605544,2456.6,2456.4,4.07099]
[1730831628166,0.0605544,2456.6,2456.5,7.82783]
[1730831628421,0.0605544,2457.8,2457.4,0.757]
[1730831628616,0.0605544,2457.8,2457.7,4.06884]
[1730831628822,0.0605544,2457.8,2457.7,4.15020999]
[1730831628979,0.0605544,2457.8,2457.7,7.97190499]
[1730831629316,0.0605544,2457.8,2457.7,8.22544379]
[1730831629489,0.0605544,2457.8,2457.7,7.97189779]
[1730831629718,0.0605544,2457.8,2457.7,8.22480872]
[1730831630014,0.0605544,2457.8,2457.7,7.97190158]
[1730831630178,0.0605544,2457.8,2457.7,8.75956885]
[1730831630371,0.0605544,2457.8,2457.7,8.22482009]
[1730831630572,0.0605544,2459.1,2458.6,0.7725]
[1730831630989,0.0605544,2459.1,2458.7,4.06718]
[1730831631414,0.0605544,2459.1,2458.6,0.7725]
[1730831631824,0.0605544,2459.1,2458.3,7.88341]
[1730831632118,0.0605544,2459.1,2458.5,3.0]
[1730831632277,0.8074,2459.0,2458.5,3.0]
[1730831632475,0.8074,2459.0,2458.3,3.8156]
[1730831632792,0.8074,2459.0,2458.3,7.88339]
[1730831632981,0.8074,2459.0,2458.3,3.8156]
[1730831633207,4.87411,2459.0,2458.3,7.88343]
[1730831633582,0.8074,2459.0,2458.4,4.06768]
[1730831633787,0.8074,2459.0,2458.3,3.8156]
[1730831633990,4.87412,2459.0,2458.3,7.88339]
[1730831634323,4.06686,2458.9,2458.3,3.8156]
[1730831634478,0.55,2458.9,2458.3,3.0]
[1730831634679,4.06703,2458.8,2458.1,3.0]
[1730831634982,4.1271044,2459.1,2458.3,4.06771]
[1730831635218,4.06669,2459.0,2458.3,4.06771]
[1730831635519,4.06686,2458.9,2458.3,4.06771]
[1730831635876,4.06686,2458.9,2458.1,4.06811]
[1730831636076,0.55,2458.7,2458.2,3.0]
[1730831636322,0.55,2458.7,2458.0,3.7609]
[1730831636323,4.06737,2458.6,2458.0,3.7609]
[1730831636523,4.61734,2458.7,2458.0,3.7609]
[1730831636730,8.68466,2458.7,2458.0,7.82921]
[1730831636910,4.06764,2458.5,2458.0,3.7609]
[1730831638607,4.936136,2458.5,2458.0,3.0]
[1730831638814,4.61778,2458.4,2457.8,3.0]
[1730831639003,0.55,2458.4,2457.8,3.0]
[1730831639200,4.83429,2458.3,2457.7,4.88632]
[1730831639404,0.55,2458.2,2457.7,0.8176]
[1730831639693,0.55,2458.2,2457.7,4.88643]
[1730831639896,4.61805,2458.2,2457.6,3.88562388]
[1730831640085,5.563284,2458.2,2457.5,4.83747]
[1730831640287,5.563284,2458.2,2457.5,8.90654]
[1730831640507,1.495234,2458.2,2457.6,0.08136751]
[1730831640827,0.7664,2458.3,2457.6,0.08136751]
[1730831641031,4.06839,2458.0,2457.4,4.06929]
[1730831641217,4.06854,2457.9,2457.3,4.83779]
[1730831641388,4.06854,2457.9,2457.4,3.0]
[1730831641586,4.06873,2457.8,2457.4,3.0]
[1730831641895,0.55,2458.2,2457.7,4.06879]
[1730831642080,0.828,2458.4,2457.9,4.06847]
[1730831642285,0.828,2458.4,2457.9,4.14983085]
[1730831642524,0.828,2458.4,2457.9,4.14974085]
[1730831642882,0.828,2458.4,2457.9,0.08136085]
[1730831643121,4.06817,2458.2,2457.6,3.0]
[1730831643320,4.557787,2458.2,2457.6,3.0]
[1730831643547,0.55,2458.1,2457.6,3.0]
[1730831643687,0.55,2458.1,2457.5,0.08137218]
[1730831643885,0.55,2458.1,2457.6,4.06888]
[1730831644288,0.55,2458.3,2457.7,4.06874]
[1730831644488,0.55,2458.3,2457.5,3.0]
[1730831644489,4.06845,2458.0,2457.5,3.0]
[1730831645311,4.06845,2458.0,2457.4,4.15056578]
[1730831645312,4.82303,2457.9,2457.4,3.0]
[1730831645525,4.82303,2457.9,2457.3,4.83497]
[1730831645754,4.82303,2457.9,2457.4,4.06933]
[1730831646056,0.7545,2457.9,2457.4,8.13856]
[1730831646218,0.7545,2457.9,2457.4,4.06923]
[1730831646748,4.8231,2457.9,2457.4,4.06923]
[1730831647157,8.89172,2457.9,2457.3,7.83506]
[1730831647382,4.8231,2457.9,2457.3,7.83506]
[1730831647889,4.8231,2457.9,2456.9,7.96575388]
[1730831647890,4.06931,2457.5,2457.0,0.7733]
[1730831648101,4.61876,2457.8,2457.2,4.06965]
[1730831648384,4.61876,2457.8,2457.0,4.84329]
[1730831648385,4.06911,2457.6,2457.0,4.84329]
[1730831648545,4.06911,2457.6,2457.0,0.7733]
[1730831648749,4.06911,2457.6,2456.9,4.07008]
[1730831648750,4.06946,2457.4,2456.9,4.07008]
[1730831648945,4.06944,2457.4,2456.7,4.82211]
[1730831649144,4.0697,2457.2,2456.7,4.82211]
[1730831649384,4.0697,2457.2,2456.7,4.07041]
[1730831649592,4.0697,2457.2,2456.5,4.89087]
[1730831649746,4.06941,2457.4,2456.7,4.07035]
[1730831649951,4.06941,2457.4,2456.8,0.33435395]
[1730831650151,8.13888,2457.4,2456.9,4.07015]
[1730831650591,4.86509,2457.5,2456.9,4.07015]
[1730831650880,0.7959,2457.5,2456.9,4.07015]
[1730831651118,4.06944,2457.4,2456.9,4.07015]
[1730831651884,4.06944,2457.4,2456.7,4.07038]
[1730831651885,4.06951,2457.3,2456.7,4.07033]
[1730831652203,5.0090771,2457.4,2456.5,3.8202]
[1730831652204,4.07018,2456.9,2456.5,0.53560343]
[1730831652380,0.7697,2457.0,2456.6,4.07051]
[1730831652751,0.756,2457.2,2456.9,4.07016]
[1730831652991,0.55,2457.3,2456.9,4.07016]
[1730831653302,0.55,2457.3,2456.9,4.07006]
[1730831653446,4.82518,2457.5,2456.9,4.07006]
[1730831653850,4.82518,2457.5,2456.8,4.07033]
[1730831654093,0.756,2457.5,2456.9,4.07003]
[1730831654299,4.06936,2457.4,2456.8,4.07033]
[1730831654456,0.756,2457.5,2457.0,4.06987]
[1730831654662,4.82522,2457.5,2457.0,4.06987]
[1730831656911,4.82522,2457.5,2456.8,4.07024]
[1730831657089,4.06944,2457.4,2456.9,4.07016]
[1730831658013,4.82522,2457.5,2457.0,4.06999]
[1730831658186,5.3539331,2457.5,2457.0,4.06999]
[1730831658609,4.0694,2457.4,2456.9,4.07016]
[1730831658833,5.3539331,2457.5,2456.9,8.1402]
[1730831659686,5.3539331,2457.5,2456.7,8.89171]
[1730831659926,4.06978,2457.2,2456.8,0.33542432]
[1730831660130,9.51558,2457.1,2456.6,4.07064]
[1730831660421,4.07026,2456.9,2456.4,4.07099]
[1730831660623,4.07026,2456.9,2456.5,0.33540775]
[1730831660624,0.55,2456.8,2456.5,0.33540775]
[1730831660927,4.07051,2456.7,2456.2,0.53672865]
[1730831661132,4.07051,2456.7,2456.3,0.33543665]
[1730831661133,4.07067,2456.6,2456.3,0.33543665]
[1730831661336,4.07067,2456.6,2456.1,4.82383]
[1730831661490,4.07067,2456.6,2456.0,0.53659036]
[1730831661491,0.64002432,2456.6,2456.2,0.33548189]
[1730831661829,0.64002432,2456.6,2455.9,8.91274]
[1730831661830,8.14189,2456.5,2455.9,8.91274]
[1730831662124,4.07094,2456.5,2456.0,4.40707566]
[1730831662332,4.07094,2456.5,2456.0,4.07157]
[1730831662487,4.07094,2456.5,2456.0,4.07165]
[1730831662683,4.07094,2456.5,2455.9,0.7693]
[1730831662684,4.62111,2456.4,2455.9,0.7693]
[1730831662883,0.55,2456.4,2456.0,3.0]
[1730831663823,0.55,2456.4,2455.8,3.0814288]
[1730831664026,0.55,2456.4,2455.9,0.3354815]
[1730831664229,0.55,2456.4,2455.8,3.0814288]
[1730831664428,0.55,2456.4,2455.9,0.33548582]
[1730831664631,0.55,2456.4,2456.0,4.0716]
[1730831665125,0.55,2456.4,2456.1,4.07145]
[1730831665283,0.55,2456.4,2456.0,4.0716]
[1730831666329,0.8134,2456.7,2456.3,4.07106]
[1730831667589,0.8134,2456.7,2456.4,4.07098]
[1730831668727,4.07068,2456.6,2456.1,4.07136]
[1730831668949,4.07068,2456.6,2455.7,7.95770388]
[1730831668950,4.66802388,2456.5,2455.4,0.7781]
[1730831669232,4.66802388,2456.5,2455.3,4.07271]
[1730831669233,4.07202,2455.8,2455.3,4.07271]
[1730831669443,4.07202,2455.8,2455.4,4.07264]
[1730831669444,0.55,2455.8,2455.4,4.07264]
[1730831670240,0.804,2455.5,2455.0,4.0732]
[1730831670736,0.804,2455.5,2455.2,4.07295]
[1730831671598,0.804,2455.5,2455.1,4.07315]
[1730831671800,5.42918,2455.8,2455.2,4.07284]